Cogmind - Beta 13 *** ADVENTURER MODE // 2024.07.04 @ 21:45:08 // Winter2019/RPGLIKE Player: nivertius Result: Destroyed by 8R-AWN with 8R-AWN's Boregun Performance ------------- Evolutions (0) 0 Regions Visited (3) 600 Robots Destroyed (25) 125 Value Destroyed (540) 540 Prototype IDs (8) 160 Alien Tech Used (0) 0 Bonus (-37) -37 TOTAL SCORE: 1388 Bonus ------- Follower Combat Kills 35 Friendly Fire -72 Cogmind --------- Core Integrity 0/600 Matter 275/300 Energy 108/125 System Corruption 0% Temperature Cool (0) Movement Hovering (70) Location -10/Exiles Parts ------- > --- POWER (1) -------- Light Ion Engine > --- PROPULSION (2) --- Makeshift Hover Unit > --- UTILITY (3) ------ Improved Heat Sink Seismic Detector Weapon Shielding > --- WEAPON (1) ------- Beam Cannon > --- INVENTORY (2) ---- Protomatter-55 Protomatter-53 Peak State ------------ > --- POWER ------------ Cold Fusion Reactor > --- PROPULSION ------- Hover Unit Makeshift Hover Unit > --- UTILITY ---------- Seismic Detector Weapon Shielding EX Chip 1 > --- WEAPON ----------- Beam Cannon > --- INVENTORY -------- Protomatter Protomatter [Rating: 17] Favorites ----------- Power Light Ion Engine Engine Light Ion Engine Reactor Cold Fusion Reactor Propulsion Hover Unit Wheel Compact Wheel Hover Unit Hover Unit Flight Unit Flight Unit Utility Seismic Detector Device Seismic Detector Hackware EX Chip 1 Protection Weapon Shielding Weapon Beam Cannon Energy Gun EM Pulse Gun Energy Cannon Beam Cannon Ballistic Gun Improved Assault Rifle Build | -11 -10 -10 -10 ------- Run | Yrd Mat Min Exi Slots Evolved 3 | . 3 . . Power . | . . . . Propulsion 1 | . 1 . . Utility 2 | . 2 . . Weapon . | . . . . Parts Attached 25 | 5 15 . 5 Power 4 | 1 1 . 2 Engine 3 | 1 1 . 1 Core . | . . . . Reactor 1 | . . . 1 Propulsion 10 | 1 8 . 1 Treads . | . . . . Leg . | . . . . Wheel 2 | 1 1 . . Hover 6 | . 5 . 1 Flight 2 | . 2 . . Utility 7 | 2 3 . 2 Device 5 | 2 2 . 1 Storage . | . . . . Processor . | . . . . Hackware 1 | . . . 1 Protection 1 | . 1 . . Artifact . | . . . . Weapon 4 | 1 3 . . Energy Gun 1 | 1 . . . Energy Cannon 2 | . 2 . . Ballistic Gun 1 | . 1 . . Ballistic Cannon . | . . . . Launcher . | . . . . Special Weapon . | . . . . Impact Weapon . | . . . . Slashing Weapon . | . . . . Piercing Weapon . | . . . . Special Melee Weapon . | . . . . Unidentified Prototypes 2 | . 1 . 1 Parts Lost 1 | . . . 1 Power . | . . . . Propulsion 1 | . . . 1 Utility . | . . . . Weapon . | . . . . Highest Loss Streak 1 | . . . 1 To Critical Strikes 1 | . . . 1 Average Slot Usage (%) 97 | . 95 100 98 Engine 13 | . 14 14 11 Wheel 1 | . 2 . . Hover 24 | . 22 28 26 Flight 1 | . 2 . . Device 27 | . 28 28 22 Hackware 1 | . . . 5 Protection 11 | . 9 14 14 Energy Cannon 13 | . 13 14 14 Naked Turns . | . . . . Heaviest Build 17 | 6 9 9 17 Greatest Support 18 | 16 16 12 18 Greatest Overweight (x) 1 | . 1 . . Average Overweight (x) . | . . . . Largest Inventory Capacity 2 | . 2 2 2 Average Capacity 1 | . 1 2 2 Most Carried 2 | . 2 2 2 Average Carried 1 | . 1 2 2 Final Capacity 2 | . 2 2 2 Final Carried 2 | . 2 2 2 Class Distribution -------------------- 89% | Hacker-Mutant 10% | Mutant Dominant Class ---------------- Hacker-Mutant | -10/Materials Hacker-Mutant | -10/Mines Hacker-Mutant | -10/Exiles Resources | -11 -10 -10 -10 ----------- Run | Yrd Mat Min Exi Matter Collected 420 | 250 150 . 20 Remotely . | . . . . Salvage Created 701 | 141 403 137 20 Parts 61 | 8 27 12 14 Haulers Intercepted . | . . . . Recyclers Shooed 1 | . 1 . . Parts Field Recycled . | . . . . Retrieved Matter . | . . . . Parts Self-Destructed . | . . . . Prevented . | . . . . Kills | -11 -10 -10 -10 ------- Run | Yrd Mat Min Exi Combat Hostiles Destroyed 14 | . 11 3 . Cannons 13 | . 10 3 . Classes Destroyed 7 | 3 4 . . Worker 3 | 1 1 1 . Tunneler 2 | 2 . . . Recycler 2 | 1 1 . . Watcher 3 | . 3 . . Swarmer 3 | . 3 . . Grunt 10 | . 7 3 . Subdweller 1 | . 1 . . Best Kill Streak 5 | 2 5 3 1 Combat Bots Only 3 | . 3 2 . Max Kills in Single Turn 1 | 1 1 1 1 Gunslinging . | . . . . Exploded . | . . . . Melee . | . . . . Uniques/NPCs Destroyed 1 | . . . 1 EX-BIN (-10/Exiles) Combat | -11 -10 -10 -10 -------- Run | Yrd Mat Min Exi Hostile Shots Fired 125 | . 35 10 80 Missed 37 | . 10 3 24 Damage Taken 1092 | . 282 69 741 Core 862 | . 213 48 601 Absorbed by Shields . | . . . . Redirected to Core 504 | . 148 47 309 Redirected to Shielding 63 | . 20 6 37 Ignored by Resistances 317 | . 84 21 212 Core Remaining (%) 100 | 100 . . . Volleys Fired 127 | 20 47 11 49 Largest 1 | 1 1 1 1 Hottest 60 | 40 60 60 60 Shots Fired 127 | 20 47 11 49 Gun 20 | 20 . . . Cannon 107 | . 47 11 49 Launcher . | . . . . Special . | . . . . Kinetic . | . . . . Thermal 107 | . 47 11 49 Explosive . | . . . . Electromagnetic 20 | 20 . . . Robot Hit Streak 19 | 6 12 13 19 Robot Miss Streak 3 | 2 3 . 1 Penetration Max . | . . . . Secondary Targets . | . . . . Shots Hit Robots 105 | 15 38 11 41 Core Hits 35 | 5 18 6 6 Critical Kills 1 | . 1 . . Critical Parts Destroyed . | . . . . Critical Strikes 1 | . 1 . . Meltdown 1 | . 1 . . Melee Attacks . | . . . . Impact . | . . . . Slashing . | . . . . Piercing . | . . . . Sneak Attacks . | . . . . Combat Hostiles . | . . . . Follow-up Attacks . | . . . . Damage Inflicted 1344 | 257 662 193 232 Guns 196 | 196 . . . Cannons 1085 | . 662 191 232 Explosions 61 | 61 . . . Melee . | . . . . Ramming 2 | . . 2 . Kinetic . | . . . . Thermal 1146 | 61 662 191 232 Explosive . | . . . . Electromagnetic 196 | 196 . . . Impact . | . . . . Slashing . | . . . . Piercing . | . . . . Highest Corruption . | . . . . Average Corruption . | . . . . Corruption Purged . | . . . . Corruption Blocked . | . . . . Overload Shots . | . . . . Overflow Damage 13 | . 3 . 10 Projectiles 13 | . 3 . 10 Explosions . | . . . . Melee . | . . . . Knockbacks . | . . . . Impact . | . . . . Kinetic . | . . . . Secondary . | . . . . Self-Inflicted Damage 1 | . . 1 . Shots . | . . . . Rammed 1 | . . 1 . Targets Rammed 1 | . . 1 . Kicked . | . . . . Crushed . | . . . . Highest Temperature 375 | 20 75 21 375 Average Temperature 104 | 20 23 11 165 Received Heat Transfer 222 | . 174 48 . Effects 1 | . . . 1 Short Circuit 1 | . . . 1 Siege Activations . | . . . . Robots Corrupted . | . . . . Combat Hostiles . | . . . . Parts Fried . | . . . . Impact Corruptions . | . . . . Robots Melted 1 | . 1 . . Combat Hostiles 1 | . 1 . . Parts Melted 7 | . 6 . 1 Heat Transferred 2599 | 100 1406 407 686 Parts Sabotaged . | . . . . Parts Stolen . | . . . . Parts Stripped . | . . . . Power Chain Reactions 1 | 1 . . . Alert | -11 -10 -10 -10 ------- Run | Yrd Mat Min Exi Peak Influence 232 | 20 232 162 . Initial 54 | . 11 54 . Average 106 | 7 112 128 . Maximum Alert Level 1 | . 1 . . Low Security (%) 91 | 100 85 100 . Level 1 8 | . 14 . . Level 2 . | . . . . Level 3 . | . . . . Level 4 . | . . . . Level 5 . | . . . . High Security . | . . . . Max Security . | . . . . Squads Dispatched 1 | . 1 . . Investigation 1 | . 1 . . Extermination . | . . . . Reinforcement . | . . . . Assault . | . . . . Garrison . | . . . . Intercept . | . . . . Searches Triggered . | . . . . Construction Impeded . | . . . . Haulers Reinforced . | . . . . Active Scanning Responses . | . . . . Cargo Convoy Interrupts . | . . . . Stealth | -11 -10 -10 -10 --------- Run | Yrd Mat Min Exi Distress Signals 1 | . 1 . . Communications Jammed . | . . . . Distress Signals . | . . . . Times Spotted 29 | . 17 4 8 Peak Tracking Total 9 | . 4 2 9 Tactical Retreats 1 | . 1 . . Traps | -11 -10 -10 -10 ------- Run | Yrd Mat Min Exi Traps Triggered 3 | . 3 . . Indirectly . | . . . . Trap Hack Attempts . | . . . . Triggered . | . . . . Disarmed 3 | . 3 . . Reprogrammed . | . . . . Reused . | . . . . Traps Extracted . | . . . . Installed . | . . . . Triggered . | . . . . Machines | -11 -10 -10 -10 ---------- Run | Yrd Mat Min Exi Machines Disabled 4 | . 1 . 3 Max in Single Turn 1 | . 1 . 1 Machines Repaired . | . . . . Machines Dismantled . | . . . . Machines Sabotaged . | . . . . Overloaded Fab Kills . | . . . . Hacking | -11 -10 -10 -10 --------- Run | Yrd Mat Min Exi Machines Accessed 6 | . 5 1 . Terminals 6 | . 5 1 . Fabricators . | . . . . Repair Stations . | . . . . Recycling Units . | . . . . Scanalyzers . | . . . . Garrison Access . | . . . . Total Hacks 33 | . 32 1 . Successful 18 | . 17 1 . Failed 14 | . 14 . . Catastrophic . | . . . . Database Lockouts 1 | . 1 . . Manual 27 | . 26 1 . Terminals 33 | . 32 1 . Fabricators . | . . . . Repair Stations . | . . . . Recycling Units . | . . . . Scanalyzers . | . . . . Garrison Access . | . . . . Terminal Hacks 12 | . 12 . . Prototype ID Bank 7 | . 7 . . Branch Access Points 1 | . 1 . . Emergency Access Points 1 | . 1 . . Terminal Index 1 | . 1 . . Locate Traps 1 | . 1 . . Disarm Traps 1 | . 1 . . Fabricator Hacks . | . . . . Repair Station Hacks . | . . . . Recycling Unit Hacks . | . . . . Scanalyzer . | . . . . Garrison Access Hacks . | . . . . Unauthorized Hacks 6 | . 5 1 . Terminals 6 | . 5 1 . Botnet 6 | . 5 1 . Fabricators . | . . . . Repair Stations . | . . . . Recycling Units . | . . . . Scanalyzers . | . . . . Garrison Access . | . . . . Data Cores Recovered . | . . . . Used . | . . . . Hacking Detections 4 | . 4 . . Full Trace Events 1 | . 1 . . Feedback Events . | . . . . Feedback Blocked . | . . . . Robot Schematics Acquired . | . . . . Robots Built . | . . . . Authchips . | . . . . Time . | . . . . Total Robot Build Rating . | . . . . Part Schematics Acquired . | . . . . Parts Built . | . . . . Authchips . | . . . . Time . | . . . . Total Part Build Rating . | . . . . Parts Repaired . | . . . . Time . | . . . . Parts Recycled . | . . . . Recycled Matter . | . . . . Retrieved Matter . | . . . . Retrieved Components . | . . . . Parts Scanalyzed . | . . . . Part Schematics Acquired . | . . . . Parts Damaged . | . . . . Bothacking | -11 -10 -10 -10 ------------ Run | Yrd Mat Min Exi Used RIF Installer . | . . . . Robots Hacked . | . . . . Non-combat . | . . . . Combat . | . . . . Robot Hacks Applied . | . . . . Relay Couplers Released . | . . . . Fabnet Peak Effective % . | . . . . Robots Rewired . | . . . . Allies Hacked . | . . . . Hacks Repelled . | . . . . Allies | -11 -10 -10 -10 -------- Run | Yrd Mat Min Exi Total Allies 5 | . . 5 . Largest Group 5 | . . 5 5 Highest-Rated Group 86 | . . 86 86 Highest-Rated Ally 31 | . . 31 31 Total Orders . | . . . . Ally Attacks 118 | . . 2 116 Total Damage 373 | . . 21 352 Kills 8 | . . 1 7 Allies Corrupted . | . . . . Allies Melted . | . . . . Intel | -11 -10 -10 -10 ------- Run | Yrd Mat Min Exi Robot Analysis Total . | . . . . Derelict Logs Recovered 2 | . . 2 . Drone Launches . | . . . . Drone Recoveries . | . . . . Exploration | -11 -10 -10 -10 ------------- Run | Yrd Mat Min Exi Turns Passed 1421 | 120 703 349 249 Spaces Moved 1664 | 79 909 427 249 Core 13 | 13 . . . Treads . | . . . . Legs . | . . . . Wheels 150 | 66 84 . . Hover 1462 | . 786 427 249 Flight 39 | . 39 . . Fastest Speed 37 | 50 37 56 56 Average Speed 60 | 91 60 56 57 Slowest Speed 125 | 100 125 56 61 Overloaded Moves . | . . . . Propulsion Burnouts . | . . . . Robots Hopped . | . . . . Cave-ins Triggered . | . . . . Exploration Rate (%) 60 | 6 98 96 41 Regions Visited 3 Branch Regions 2 Pre-discovered Areas 1 | . . 1 . Known Exits Taken 1 | . 1 . . Unknown Exits Taken 2 | 1 . 1 . Scrap Searched 1 | . . 1 . Spaces Dug . | . . . . Terrain Destroyed 7 | 7 . . . Melee . | . . . . Projectile . | . . . . AOE 7 | 7 . . . Terrain Rammed . | . . . . Walls Destroyed . | . . . . Machines Disabled . | . . . . Actions | -11 -10 -10 -10 --------- Run | Yrd Mat Min Exi Total 1956 | 104 1018 525 309 Wait 101 | . 15 85 1 Move 1661 | 78 908 426 249 Hop . | . . . . Pick Up 3 | . 3 . . Fast Attach 22 | 5 13 . 4 Attach 1 | . 1 . . Detach 3 | . 2 . 1 Swap 2 | . 1 . 1 Drop 15 | 1 10 . 4 Fire 127 | 20 47 11 49 Melee . | . . . . Ram 1 | . . 1 . Kick . | . . . . Crush . | . . . . Escape Stasis . | . . . . Rewire . | . . . . Trap . | . . . . Miscellaneous 20 | . 18 2 . Route ------- -11/Scrapyard -10/Materials (discovered 5 exits: [*Mat x3] / *Min / [*Sub]) -10/Mines (discovered 3 exits: [*Mat x2] / [*Exi]) -10/Exiles (discovered 2 exits: *Min x2) History --------- Turn | Location | Event 4 | -11/Scrapyard | Discovered new exit (range 15) 121 | -11/Scrapyard | Entered Materials 148 | -10/Materials | Upgraded with Propulsion slot (x1) 148 | -10/Materials | Upgraded with Utility slot (x2) 198 | -10/Materials | Discovered new exit (range 13) 308 | -10/Materials | Discovered new exit (range 16) 437 | -10/Materials | Discovered new exit (range 13) 454 | -10/Materials | Build established: Hacker-Mutant 491 | -10/Materials | Identified exit to Mines 587 | -10/Materials | Discovered new exit (range 12) 596 | -10/Materials | Central database locked down 621 | -10/Materials | Derelicts attacked the area 664 | -10/Materials | Discovered new exit (range 13) 824 | -10/Materials | Entered Mines 826 | -10/Mines | Reached level 2 830 | -10/Mines | Learned Materials emergency access door positions 945 | -10/Mines | Deemed a non-threat by the Exiles lab entrance 945 | -10/Mines | Discovered new exit (range 5) 981 | -10/Mines | Received a Rocket Launcher from a helpful Derelict 981 | -10/Mines | Discovered new exit (range 6) 991 | -10/Mines | Learned location of Storage (-7) 1000 | -10/Mines | Assisted by bots powering up and referring to "LRC-V3" 1026 | -10/Mines | Discovered new exit (range 9) 1173 | -10/Mines | Entered Exiles 1173 | -10/Exiles | Accompanied by 5 allies 1174 | -10/Exiles | Identified exit to Mines 1194 | -10/Exiles | Met 8R-AWN 1203 | -10/Exiles | Led the pair of lost Derelicts to a safe place 1203 | -10/Exiles | Met EX-HEX 1219 | -10/Exiles | Met EX-BIN 1281 | -10/Exiles | Attacked by the Exiles 1282 | -10/Exiles | Destroyed EX-BIN 1366 | -10/Exiles | Core integrity fell below 50% 1398 | -10/Exiles | Core integrity fell below 20% 1422 | -10/Exiles | Destroyed by 8R-AWN with 8R-AWN's Boregun Last Messages --------------- 01401_ Penetrated by HV Slug. 01401_ HV Slug penetrates Earth. 01401_ Penetrated by HV Slug. 01401_ HV Slug penetrates Earth. 01405_ Penetrated by HV Slug. 01405_ HV Slug penetrates Earth. 01405_ Penetrated by HV Slug. 01405_ HV Slug penetrates Earth. 01409_ Penetrated by HV Slug. 01409_ Critical hit (Destroy). 01409_ Hover Unit destroyed. 01409_ HV Slug penetrates Earth. 01409_ Penetrated by HV Slug. 01409_ HV Slug penetrates Earth. 01414_ Penetrated by HV Slug. 01414_ HV Slug penetrates Earth. 01414_ Penetrated by HV Slug. 01418_ HV Slug penetrates FarCom Aligner. 01418_ HV Slug penetrates Earth. 01422_ Penetrated by HV Slug. Map ----- +----------------------------------------------------+ | ?????????????????????????????????????????????????? | | ????????????????########?????????????????????????? | | ????????????????#X #?????????????????????????? | | ????????????????## #?????????????????????????? | | ?????????????????# #?????????????????????????? | | ?????????????????# #########?????????????????? | | ?????????????????# ##""""""#?????????????????? | | ?????????????????" ## """#?????????????????? | | ?????????????????# X""#?????????????????? | | ??????????????##?# ## """#?????????????????? | | ?????????######"## ##""""""#?????????????????? | | ?????????#""""" "# #########?????????????????? | | ?????????#"""" "# #??????? ????????????????? | | ?????????#""X" #??????# ?????????????????? | | ?????????#" #????? ?????????????????? | | ?????????#" #; #????? #?????????????????? | | ?????????#""""""## #?####;;###???????????????? | | ?????????##"###### ###"" """# ??????????????? | | ????????? "#????# # # """;#??????????????? | | ????????""" #????# # ;" "" #???????????????? | | ???????#""" #???## ;#;" ""#???????????????? | | ?????????"" #???#" " ""#???????????????? | | ??????????###???# """#???????????????? | | ????????????????# * "" #???????????????? | | ????????????????#" [=! "#???????????????? | | ????????????????# @%!! """#???????????????? | | ????????????????#" %!!%! """##??????????????? | | ????????????????## g%!!!!""""""?????????????? | | ?????????????????# g ! """##??????????????? | | ?????????????????# % %!X" """""??????????????? | | ?????????????????#" %%= "" # ??????????????? | | ?????????????????#" " """""#???????????????? | | ????????????????## %###########???????????????? | | ???????????????## #?????????????????????????? | | ?????????????###"" #?????????????????????????? | | ????????????"""""" ##????????????????????????? | | ??????????""" " " ##???###########?????????? | | ??????????""" #####"""""""""##????????? | | ????????" " " """ """"##???????? | | ?????? "" " #???????? | | ?????? " """#???????? | | ?????? " "#???????? | | ??????? " "##??????? | | ??????? ""###????? | | ??????? """""" """#????? | | ???????? ######""" "#????# | | ???????? ""#?????#####""" ##???# | | ?????????"""#??????????##""" ##?## | | ????????????????????????#"""" ### | | ????????????????????????#"" | +----------------------------------------------------+ Best States ------------- Heat Dissipation 49 Energy Generation 17 Energy Capacity 200 Matter Stores 300 Matter Capacity 300 Sight Range 16 Terrain Scan Range 16 Terrain Scan Density 10 Resistance: KI 20 Resistance: TH 20 Resistance: EX 20 Resistance: EM 20 Resistance: I 20 Resistance: S 20 Resistance: P 20 Weapon Shielding 33 Evasion (%) 62 Offensive Hacking 27 Defensive Hacking 10 Item Schematics ----------------- None Robot Schematics ------------------ None Fabricated ------------ Nothing Alien Tech Used ----------------- None Achievements -------------- None Challenges ------------ None RPGLIKE | -11 -10 -10 -10 --------- Run | Yrd Mat Min Exi Levels Raised 1 | . . 1 . XP Earned 6627 | 4000 1395 1032 200 XP Spent 4550 | . 3850 700 . Upgrades 11 | . 9 2 . Propulsion Slot 1 | . 1 . . Utility Slot 2 | . 2 . . Inventory Capacity 2 | . 2 . . Hack Attack % 2 | . 2 . . Hack Defense % 2 | . 2 . . TH Damage % 2 | . . 2 . Protomatter Created 257 | . 222 35 . Integrity Restored 367 | . 319 48 . Core 261 | . 213 48 . Parts 106 | . 106 . . Protomatter Decayed 56 | . 37 19 . Game ------ Seed CentriumMicroBarrier Manual? 0 Play Time 00:24:51 Cumulative 48.4 hours Start 2024.07.04 @ 21:21:27 End 2024.07.04 @ 21:45:08 Sessions 1 Manual Loads 0 Difficulty Adventurer Special Mode Winter2019/RPGLIKE Game No. 25 Rogue 6 Adventurer 19 Explorer 0 Win Type - Total 2 Types 1/0/0/1/0/0/0/0/0 Lore% 50 Gallery% 61 Achievement% 56 Wizard Run 0 Options --------- Layout 0 ASCII 0 Keyboard 1 Movement Numpad Keybinds 0 Fullscreen 1 Font 36/Crisp Map View 76x50 Zoom Use 0% Tactical HUD 1 Map Filters NONE Filters NONE Steam 1 RUN: 11f30ddf-6fe6-497d-b95f-071ba8e0c3bb